bitfinex/quotes_ETHUSD_20241106
["timestamp","ask_amount","ask_price","bid_price","bid_amount"]
[1730873295319,4.239488,2594.7,2594.1,0.8048]
[1730873295663,3.85408,2594.7,2594.1,4.65968]
[1730873295862,3.85452,2594.4,2594.1,0.8048]
[1730873296316,3.85469,2594.3,2593.7,3.85538]
[1730873296518,3.85388,2594.8,2593.8,0.23040616]
[1730873296519,3.8549,2594.1,2593.8,0.23040616]
[1730873296761,3.8549,2594.1,2593.5,4.66049]
[1730873296762,3.85482,2594.2,2593.6,3.85554]
[1730873296918,3.85491,2594.1,2593.7,0.23040958]
[1730873297120,3.8549,2594.1,2593.6,3.85554]
[1730873297320,3.85505,2594.0,2593.5,4.94831571]
[1730873297645,3.85505,2594.0,2593.6,0.23046869]
[1730873297845,3.85545,2593.8,2593.5,0.8048]
[1730873298158,3.8552,2593.9,2593.5,0.8048]
[1730873298726,3.85509,2594.0,2593.5,0.8048]
[1730873298922,3.85494,2594.1,2593.5,0.8048]
[1730873299153,7.71051,2593.9,2593.5,0.8048]
[1730873299342,3.85521,2593.9,2593.5,0.8048]
[1730873299825,3.85545,2593.8,2593.5,0.8048]
[1730873300025,3.85545,2593.8,2593.1,4.14411571]
[1730873300026,0.771066,2593.8,2593.1,1.09262571]
[1730873300228,3.85609,2593.3,2593.0,0.2303554]
[1730873300530,3.85601,2593.4,2592.8,3.85674]
[1730873300725,3.8559,2593.5,2592.9,0.23034005]
[1730873300947,3.85535,2593.8,2593.0,3.85652]
[1730873301203,0.8253,2594.1,2592.8,0.07712688]
[1730873301344,3.85604,2593.4,2592.9,0.23020013]
[1730873301694,3.85604,2593.4,2592.9,3.85666]
[1730873301982,3.85602,2593.4,2592.8,0.23020013]
[1730873302184,3.85616,2593.3,2592.7,4.66168]
[1730873302426,3.85616,2593.3,2592.8,3.85683]
[1730873302573,3.85534,2593.8,2592.8,3.85683]
[1730873302744,3.85564,2593.6,2592.8,3.85672]
[1730873302948,3.85601,2593.4,2592.9,3.85659]
[1730873303184,3.85601,2593.4,2592.8,7.71344]
[1730873303389,3.85601,2593.4,2592.8,3.85672]
[1730873303686,3.85601,2593.4,2592.9,3.85667]
[1730873303890,3.85573,2593.6,2592.9,3.85667]
[1730873304181,3.85572,2593.6,2592.9,3.85667]
[1730873304392,3.85587,2593.5,2593.0,3.85645]
[1730873304954,7.71176,2593.5,2593.0,3.85645]
[1730873305258,3.85587,2593.5,2592.9,3.85667]
[1730873305465,3.85587,2593.5,2592.8,3.85681]
[1730873305671,3.85538,2593.8,2592.8,3.85681]
[1730873305865,3.85619,2593.3,2592.8,3.85681]
[1730873306048,3.85625,2593.2,2592.7,0.8048]
[1730873306251,3.85646,2593.1,2592.6,3.85702]
[1730873306447,3.85646,2593.1,2592.1,7.04187794]
[1730873306448,3.85671,2592.9,2592.5,3.0]
[1730873306653,3.85671,2592.9,2592.2,3.85763]
[1730873306884,3.8571,2592.7,2592.1,3.85782]
[1730873307100,3.8572,2592.6,2592.1,3.85782]
[1730873307554,3.8571,2592.7,2592.2,3.85772]
[1730873307950,3.85708,2592.7,2592.1,3.85782]
[1730873308197,3.85767,2592.3,2591.8,3.85831]
[1730873308384,3.85767,2592.3,2591.6,3.85853]
[1730873308552,3.85835,2591.8,2591.2,3.85917]
[1730873308797,3.85778,2592.2,2591.5,3.85866]
[1730873308966,3.85778,2592.2,2591.6,3.85859]
[1730873309169,4.242698,2592.7,2591.6,3.85859]
[1730873309511,3.8578,2592.2,2591.7,3.85846]
[1730873309708,3.0,2593.0,2591.5,3.85865]
[1730873310004,3.85793,2592.1,2591.5,3.85865]
[1730873310598,3.85785,2592.2,2591.6,3.85853]
[1730873310936,3.8579,2592.1,2591.5,3.85865]
[1730873311408,3.8579,2592.1,2591.5,7.71732]
[1730873311552,3.0,2593.2,2591.2,3.0]
[1730873311756,3.85718,2592.6,2591.8,3.85817]
[1730873312013,0.40101,2593.1,2591.6,3.8585]
[1730873312295,3.0,2592.9,2591.6,3.8585]
[1730873312501,3.85787,2592.1,2591.6,3.8585]
[1730873312654,3.85787,2592.1,2591.4,3.85883]
[1730873312655,3.85787,2592.1,2591.5,6.85876]
[1730873312868,3.85787,2592.1,2591.4,3.85883]
[1730873312869,3.85812,2592.0,2591.4,3.85883]
[1730873313062,3.85787,2592.1,2591.4,3.85883]
[1730873313063,3.8582,2591.9,2591.4,3.85883]
[1730873313256,3.85807,2592.0,2591.4,3.85882]
[1730873313659,3.85814,2592.0,2591.0,3.85951]
[1730873313954,3.85799,2592.1,2591.5,3.85867]
[1730873314158,6.85717,2592.6,2591.6,3.8586]
[1730873314159,3.85778,2592.2,2591.6,3.8586]
[1730873314356,3.85778,2592.2,2591.1,3.85934]
[1730873314357,0.40253143,2592.8,2592.2,3.85763]
[1730873314577,0.40253143,2592.8,2592.0,3.85794]
[1730873314777,3.8573,2592.5,2592.0,3.85794]
[1730873315189,3.85707,2592.7,2592.0,3.85794]
[1730873315458,3.85721,2592.6,2592.0,3.85794]
[1730873315659,0.40101,2593.1,2592.1,3.07715756]
[1730873315884,5.79694007,2593.8,2592.9,3.85666]
[1730873315885,5.39447451,2593.8,2592.9,3.85666]
[1730873316093,5.39447451,2593.8,2593.2,3.85621]
[1730873316401,3.85564,2593.6,2593.0,3.85641]
[1730873316614,3.85642,2593.1,2592.5,3.85718]
[1730873316808,3.85616,2593.3,2592.7,3.85696]
[1730873317019,3.85616,2593.3,2592.5,3.85718]
[1730873317300,3.85639,2593.1,2592.5,3.85718]
[1730873317803,3.85677,2592.9,2592.3,3.85747]
[1730873318005,3.85649,2593.1,2592.2,3.0]
[1730873318205,3.85693,2592.8,2592.3,3.85748]
[1730873318420,3.85698,2592.7,2592.2,3.0]
[1730873318597,3.85698,2592.7,2592.1,7.71561]
[1730873318904,3.85676,2592.9,2591.9,6.85813]
[1730873319063,3.85646,2593.1,2592.5,3.85715]
[1730873319264,7.71295,2593.1,2592.5,3.85715]
[1730873319468,3.85646,2593.1,2592.5,7.71433]
[1730873319799,3.85646,2593.1,2592.5,3.85715]
[1730873320164,3.85679,2592.9,2592.3,3.85744]
[1730873320501,3.85691,2592.8,2592.3,3.85744]
[1730873321002,3.85679,2592.9,2592.3,7.71494]
[1730873321201,4.242106,2593.1,2592.0,0.07715143]
[1730873321400,3.85655,2593.0,2592.1,0.55]
[1730873321911,3.85655,2593.0,2592.5,3.85719]
[1730873322066,3.85623,2593.2,2592.6,3.85712]
[1730873322409,3.8564,2593.1,2592.6,3.85712]
[1730873322609,3.85639,2593.1,2592.7,3.85694]
[1730873322813,3.85639,2593.1,2592.6,3.85711]
[1730873324034,3.85601,2593.4,2592.8,3.85672]
[1730873324235,3.85609,2593.3,2592.8,3.85672]
[1730873324596,3.85609,2593.3,2592.8,7.71346]
[1730873324825,3.74402906,2593.3,2592.8,3.85672]
[1730873325017,7.71262,2593.2,2592.6,4.08677347]
[1730873325201,3.85627,2593.2,2592.7,0.22978347]
[1730873325400,0.771232,2593.2,2592.5,0.28722269]
[1730873325600,3.85713,2592.6,2592.3,0.23003605]
[1730873325841,3.85713,2592.6,2592.2,3.85769]
[1730873326002,3.85699,2592.7,2592.2,3.85764]
[1730873326199,3.85717,2592.6,2592.3,0.23022486]
[1730873326407,3.85713,2592.6,2592.0,3.85787]
[1730873326638,3.85713,2592.6,2592.1,3.85787]
[1730873326823,3.85713,2592.6,2592.2,0.23029275]
[1730873327025,3.85713,2592.6,2592.1,4.14587792]
[1730873327220,3.85713,2592.6,2592.2,0.23036755]
[1730873327401,3.85713,2592.6,2592.3,0.23036755]
[1730873327601,3.85699,2592.7,2592.2,3.85764]
[1730873327818,3.85699,2592.7,2592.3,0.23045195]
[1730873328142,3.8572,2592.6,2592.1,7.71567]
[1730873328344,3.0,2593.3,2592.2,0.51876618]
[1730873328500,3.0,2593.3,2591.9,0.25884495]
[1730873328501,3.85639,2593.1,2592.6,3.85706]
[1730873328701,3.85639,2593.1,2592.7,0.23054654]
[1730873329030,3.85639,2593.1,2592.8,0.23054654]
[1730873329339,3.85639,2593.1,2592.6,3.85706]
[1730873329340,3.85639,2593.1,2592.9,0.23049675]
[1730873329514,3.85639,2593.1,2592.7,0.28816036]
[1730873329722,3.85639,2593.1,2592.8,0.23049911]
[1730873329905,3.85639,2593.1,2592.7,3.85698]
[1730873330104,3.85625,2593.2,2592.8,0.23050736]
[1730873330304,3.85625,2593.2,2592.9,0.23050736]
[1730873330514,3.85625,2593.2,2592.7,3.85698]
[1730873330741,3.85619,2593.3,2592.8,4.08739436]
[1730873330939,3.85624,2593.2,2592.9,0.23057436]
[1730873331147,3.85624,2593.2,2593.0,0.23057436]
[1730873331317,3.85619,2593.3,2592.8,7.71364]
[1730873331521,3.85619,2593.3,2592.9,0.51854398]
[1730873331718,3.85619,2593.3,2593.0,0.23045168]
[1730873331918,3.85619,2593.3,2592.6,0.25916466]
[1730873331919,3.85619,2593.3,2592.8,3.85683]
[1730873332248,3.85641,2593.1,2592.9,0.23046624]
[1730873332451,3.85653,2593.0,2592.4,4.11648466]
[1730873332656,3.85692,2592.8,2592.5,0.51875977]
[1730873332813,3.85713,2592.6,2592.2,0.25916466]
[1730873333161,3.85713,2592.6,2591.7,3.85844]
[1730873333162,3.85623,2593.2,2592.3,0.51884903]
[1730873333310,3.85698,2592.7,2592.4,0.51902708]
[1730873333509,3.85698,2592.7,2592.1,4.11699573]
[1730873333510,3.85698,2592.7,2592.5,0.23066638]
[1730873333730,3.85698,2592.7,2592.1,4.11699573]
[1730873333944,4.242013,2593.1,2592.1,4.11699573]
[1730873333945,3.85677,2592.9,2592.2,0.51912399]
[1730873334165,3.85705,2592.7,2592.3,0.51912399]
[1730873334309,3.85705,2592.7,2592.1,4.11704573]
[1730873334310,3.85728,2592.5,2592.4,0.51912399]
[1730873334512,3.85728,2592.5,2592.4,0.23070945]
[1730873334732,3.85654,2593.0,2592.4,0.51915812]
[1730873334733,3.8566,2593.0,2592.4,0.51915812]
[1730873335046,3.85713,2592.6,2592.5,0.23070945]
[1730873335233,3.85713,2592.6,2592.0,0.25926573]
[1730873335434,3.85752,2592.4,2592.1,0.51956319]
[1730873335640,3.85759,2592.3,2592.2,0.51956319]
[1730873335826,3.85759,2592.3,2592.2,0.23090464]
[1730873336373,0.771511,2592.3,2591.7,0.25926573]
[1730873336526,7.71456,2592.5,2591.8,0.51979006]
[1730873336730,3.85716,2592.6,2591.4,0.25926573]
[1730873336930,3.85862,2591.6,2591.5,0.52003772]
[1730873337158,3.85858,2591.7,2591.5,0.52003772]
[1730873337375,3.85878,2591.5,2591.1,0.25926573]
[1730873337543,3.85878,2591.5,2591.2,0.5200286]
[1730873337742,3.85878,2591.5,2591.3,0.23111147]
[1730873338068,3.85878,2591.5,2591.4,0.23111147]
[1730873338278,3.85936,2591.1,2591.0,0.28881583]
[1730873338578,3.85859,2591.7,2591.0,0.51984428]
[1730873338786,3.85871,2591.6,2591.1,0.51984428]
[1730873339073,3.85879,2591.5,2591.2,0.23102845]
[1730873339290,3.85879,2591.5,2591.3,0.23102845]
[1730873339587,3.85879,2591.5,2590.9,3.85958]
[1730873339740,3.85859,2591.7,2591.0,4.37923084]
[1730873339741,3.85858,2591.7,2591.0,4.37923084]
[1730873339940,3.85858,2591.7,2591.1,0.51981084]
[1730873340154,3.85872,2591.6,2591.2,0.23103398]
[1730873340478,3.85812,2592.0,2591.3,0.23103398]
[1730873340686,3.85812,2592.0,2591.4,4.08982398]
[1730873340837,3.85812,2592.0,2591.5,0.23103398]
[1730873341035,3.85812,2592.0,2591.6,0.23103398]
[1730873341239,3.85812,2592.0,2591.4,3.85879]
[1730873341472,0.40098552,2592.6,2591.5,0.23080565]
[1730873341681,3.85728,2592.5,2591.6,4.08939565]
[1730873341983,3.85751,2592.4,2591.7,0.23079871]
[1730873342319,3.85728,2592.5,2591.8,4.08891754]
[1730873342484,3.85728,2592.5,2591.8,3.85821]
[1730873342643,0.40098552,2592.6,2591.8,3.85821]
[1730873342848,3.85796,2592.1,2591.5,0.28833863]
[1730873343062,3.85796,2592.1,2591.6,0.23069757]
[1730873343262,3.85796,2592.1,2591.4,3.85882]
[1730873343476,3.85796,2592.1,2591.5,0.23069611]
[1730873343676,3.85842,2591.8,2591.3,0.28841183]
[1730873343921,0.385796,2592.0,2591.4,0.2307149]
[1730873343922,3.85876,2591.5,2591.4,0.2307149]
[1730873344176,7.7171,2591.7,2591.2,0.28841943]
[1730873344395,3.85872,2591.6,2591.2,0.28841943]
[1730873344838,3.85887,2591.5,2591.2,0.28841943]
[1730873345287,7.71777,2591.5,2590.8,3.85971]
[1730873345486,7.71777,2591.5,2590.9,0.22922067]
[1730873345487,3.85887,2591.5,2590.9,0.22922067]
[1730873345641,3.85887,2591.5,2591.0,0.22922718]
[1730873345839,3.85887,2591.5,2590.9,3.85965]
[1730873346093,3.85825,2591.9,2591.0,4.08872752]
[1730873346296,3.85794,2592.1,2591.5,3.85875]
[1730873346491,3.85764,2592.3,2591.5,3.85875]
[1730873346492,3.85778,2592.2,2591.5,3.85875]
[1730873346896,3.85791,2592.1,2591.5,3.85875]
[1730873347092,3.8584,2591.8,2591.2,3.28642844]
[1730873347397,3.8584,2591.8,2591.0,3.0]
[1730873347596,3.8584,2591.8,2590.6,4.31243203]
[1730873347597,3.85914,2591.3,2590.8,0.28642844]
[1730873347837,0.38584,2591.8,2590.6,0.1929821]
[1730873348131,3.85806,2592.0,2591.2,3.85911]
[1730873348335,3.85806,2592.0,2591.2,3.85917]
[1730873348336,0.40065262,2592.0,2591.2,3.85917]
[1730873348557,7.71622,2592.0,2591.3,3.85896]
[1730873348837,0.40063674,2592.5,2591.4,3.85887]
[1730873348995,0.40063674,2592.5,2591.0,3.51562413]
[1730873349200,3.858,2592.1,2591.3,3.85904]
[1730873349401,7.71555,2592.2,2591.4,3.85888]
[1730873349597,7.71555,2592.2,2591.4,7.7177]
[1730873349917,7.71555,2592.2,2591.4,3.85882]
[1730873350443,0.60405309,2592.4,2591.7,3.85844]
[1730873350735,0.60405309,2592.4,2591.5,3.85867]
[1730873351046,4.46155309,2592.4,2591.3,0.55]
[1730873351232,3.85788,2592.1,2591.5,3.85866]
[1730873351546,0.83,2592.0,2591.3,3.85899]
[1730873351846,0.83,2591.9,2591.5,3.85873]
[1730873352022,0.83,2591.8,2591.1,10.94766481]
[1730873352198,0.83,2591.8,2591.1,4.19755034]
[1730873352400,0.83,2591.8,2591.3,3.85892]
[1730873352603,0.83,2592.0,2591.0,0.55]
[1730873352800,0.83,2591.7,2591.1,3.85927]
[1730873353199,0.83,2591.7,2591.1,3.85926]
[1730873353541,0.83,2591.7,2591.4,3.8589]
[1730873353768,0.83,2591.7,2591.5,3.85876]
[1730873353919,0.83,2591.7,2591.5,3.85869]
[1730873354120,0.83,2591.7,2591.3,3.85895]
[1730873354460,0.83,2591.7,2591.4,3.85883]
[1730873354663,0.83,2591.7,2591.2,3.85911]
[1730873354849,0.83,2591.7,2591.5,3.85869]
[1730873355718,0.83,2591.7,2591.6,3.85862]
[1730873355914,0.83,2591.7,2591.4,3.85891]
[1730873356113,0.83,2591.7,2591.3,3.85895]
[1730873356359,0.83,2591.7,2591.1,3.85923]
[1730873356516,0.83,2591.7,2591.3,3.85905]
[1730873356715,0.83,2591.7,2591.4,3.85888]
[1730873357019,0.83,2591.7,2591.3,3.85897]
[1730873357375,0.83,2592.4,2591.5,3.85865]
[1730873357670,0.83,2592.4,2591.9,3.85809]
[1730873358020,0.83,2592.4,2592.0,3.85791]
[1730873358616,0.83,2592.4,2591.6,3.85852]
[1730873358820,0.83,2592.2,2591.7,3.85845]
[1730873359042,4.68773,2592.2,2591.6,3.85852]
[1730873359242,0.83,2592.2,2591.6,3.85852]
[1730873359565,4.68774,2592.2,2591.6,3.85852]
[1730873359728,4.68774,2592.2,2591.6,3.85857]
[1730873360634,0.83,2592.1,2591.4,3.85882]
[1730873360848,0.83,2592.1,2591.6,3.8586]
[1730873361038,4.68787,2592.1,2591.6,3.8586]
[1730873361287,0.83,2592.1,2591.8,3.85829]
[1730873361483,0.83,2592.1,2592.0,3.85802]
[1730873361701,4.86172268,2592.8,2591.5,3.0]
[1730873361702,0.6039817,2592.8,2591.5,3.0]
[1730873361916,0.83,2592.7,2592.6,3.85713]
[1730873362115,0.83,2592.7,2592.1,4.62644]
[1730873362116,0.83,2592.7,2592.5,3.85726]
[1730873362285,0.83,2592.7,2592.0,0.22701632]
[1730873362479,0.83,2592.7,2592.5,3.85715]
[1730873362701,0.83,2592.7,2592.1,7.71565]
[1730873363285,0.83,2592.7,2591.5,0.19926182]
[1730873363286,0.83,2591.9,2591.5,0.25825394]
[1730873363506,0.83,2591.6,2591.2,3.85912]
[1730873363808,5.4517494,2592.4,2591.5,3.85876]
[1730873364029,0.83,2591.9,2591.5,3.85876]
[1730873364619,0.83,2591.9,2591.1,0.22714617]
[1730873364620,0.83,2591.9,2591.7,3.85839]
[1730873364815,0.83,2591.9,2591.7,3.85836]
[1730873365023,0.83,2591.9,2591.7,7.71672]
[1730873365181,0.83,2591.9,2591.7,3.85836]
[1730873365384,0.83,2591.9,2591.5,3.85868]
[1730873365797,0.83,2591.9,2591.5,3.85867]
[1730873366299,0.83,2591.9,2591.5,7.71736]
[1730873366525,0.83,2591.9,2591.5,3.85867]
[1730873367330,3.85854,2591.7,2591.1,3.85928]
[1730873367626,4.68863,2591.6,2591.1,3.85928]
[1730873367933,0.83,2591.6,2591.1,7.71857]
[1730873368079,0.83,2591.6,2591.1,3.85928]
[1730873368718,3.85877,2591.5,2591.0,0.22663187]
[1730873368984,0.83,2591.6,2591.1,3.85935]
[1730873369705,4.68862,2591.6,2590.9,3.85952]
[1730873370007,4.68862,2591.6,2591.1,3.85935]
[1730873370520,3.85892,2591.4,2590.9,3.85952]
[1730873371316,5.157572,2591.6,2590.9,3.85952]
[1730873371519,0.83,2591.6,2591.3,3.85898]
[1730873371886,0.83,2591.6,2591.4,3.85883]
[1730873372301,0.83,2591.6,2591.2,3.85918]
[1730873372516,0.83,2591.6,2591.3,3.85906]
[1730873373023,0.83,2591.6,2591.0,3.85941]
[1730873373320,0.83,2591.6,2591.3,3.85904]
[1730873373633,4.67388,2591.9,2591.3,3.85899]
[1730873373827,4.67388,2591.9,2591.4,3.85883]
[1730873374128,3.85887,2591.5,2590.7,0.2580717]
[1730873374428,4.67417,2591.7,2591.1,3.85928]
[1730873374639,1.668935,2591.7,2590.9,4.08582698]
[1730873374925,4.67453,2591.5,2591.0,4.1478102]
[1730873375124,4.67453,2591.5,2591.0,3.85944]
[1730873375422,4.67453,2591.5,2590.9,3.85955]
[1730873375423,0.8157,2591.5,2590.9,3.85955]
[1730873375731,4.67448,2591.5,2591.0,0.28839908]
[1730873375928,3.85892,2591.4,2590.9,4.08600778]
[1730873376084,0.8157,2591.5,2591.0,0.2883992]
[1730873376286,0.8157,2591.5,2591.0,3.85948]
[1730873376620,0.8157,2591.8,2591.5,3.85873]
[1730873376785,0.8157,2591.8,2591.4,3.85887]
[1730873376985,0.8157,2591.8,2591.5,3.85874]
[1730873377186,0.8157,2591.8,2591.4,3.8589]
[1730873377383,0.8157,2591.8,2591.4,3.85884]
[1730873378033,0.8157,2591.8,2591.3,4.0854117]
[1730873378332,0.8157,2591.8,2591.5,3.85875]
[1730873378619,0.8157,2592.2,2591.6,0.36555785]
[1730873378828,0.8157,2592.2,2591.8,3.85821]
[1730873380160,1.5942294,2592.5,2591.8,0.55]
[1730873380440,0.8157,2592.5,2592.4,3.85742]
[1730873380848,0.8157,2592.8,2592.5,3.85718]
[1730873381164,0.8157,2592.8,2592.4,7.71484]
[1730873381353,0.8157,2592.8,2592.6,3.85713]
[1730873381875,2.41742026,2593.6,2592.5,3.85727]
[1730873381876,1.5942294,2593.5,2593.1,3.85638]
[1730873382013,2.01451688,2593.7,2593.4,3.85593]
[1730873382014,2.4099294,2593.7,2593.4,3.85593]
[1730873382213,0.8157,2593.7,2593.4,3.85593]
[1730873382719,0.8157,2593.7,2593.6,3.85564]
[1730873383118,0.8157,2594.2,2593.7,3.85548]
[1730873383356,1.282739,2594.2,2593.7,3.85548]
[1730873383521,0.8157,2594.2,2594.1,3.8549]
[1730873383706,0.8157,2594.2,2594.0,3.85504]
[1730873383908,0.8157,2594.2,2594.1,3.8549]
[1730873384213,0.8157,2594.2,2594.0,3.85501]
[1730873384630,0.8157,2594.2,2593.9,3.85507]
[1730873385147,0.8157,2594.2,2593.9,7.71018]
[1730873385325,4.61905,2594.7,2594.0,3.85504]
[1730873385642,7.9938454,2595.2,2594.6,3.85401]
[1730873385643,0.765,2595.1,2594.6,3.85401]
[1730873385844,0.60337002,2595.0,2594.5,3.85418]
[1730873386058,0.765,2595.1,2594.7,3.85398]
[1730873386411,0.765,2595.1,2594.7,3.8539]
[1730873386646,2.8722,2595.2,2595.1,3.85341]
[1730873386853,2.8722,2595.2,2594.9,7.70728]
[1730873387348,2.8722,2595.2,2594.5,3.8543]
[1730873387349,2.8722,2595.2,2595.0,3.85354]
[1730873387582,0.765,2595.0,2594.1,3.85479]
[1730873387860,4.61917,2594.6,2593.9,3.85514]
[1730873388065,3.85442,2594.5,2593.7,3.85542]
[1730873388447,3.85442,2594.5,2593.9,3.85518]
[1730873388675,0.765,2594.6,2593.9,3.85518]
[1730873388829,3.85431,2594.5,2593.9,3.85518]
[1730873389030,4.701645,2594.5,2593.9,3.85518]
[1730873389349,4.701645,2594.5,2593.7,3.85543]
[1730873389555,4.701645,2594.5,2593.8,3.85533]
[1730873389759,4.701645,2594.5,2593.9,3.85516]
[1730873389760,0.847335,2594.5,2593.9,3.85516]
[1730873389935,0.847335,2594.5,2593.7,3.85538]
[1730873389936,4.701755,2594.5,2593.7,3.85538]
[1730873390135,4.4011355,2594.4,2593.7,3.85538]
[1730873390564,0.765,2594.3,2593.5,3.85571]
[1730873390761,0.765,2594.3,2593.6,3.85555]
[1730873391071,0.765,2594.3,2593.8,3.85523]
[1730873391228,0.765,2594.3,2593.7,3.85548]
[1730873391432,4.61963,2594.3,2593.6,3.85556]
[1730873391627,5.46705,2594.3,2593.6,3.85556]
[1730873392380,5.46705,2594.3,2593.6,3.85553]
[1730873392381,1.61242,2594.3,2593.6,3.85553]
[1730873392581,5.46706,2594.3,2593.6,3.85553]
[1730873392778,1.61242,2594.3,2593.6,7.71105]
[1730873393292,0.765,2594.3,2593.5,0.07710523]
[1730873393453,0.765,2594.3,2593.8,3.85522]
[1730873393652,0.765,2594.3,2593.8,3.8552]
[1730873393879,0.765,2594.3,2593.9,3.8551]
[1730873394182,0.765,2594.3,2594.0,3.85504]
[1730873394380,0.765,2594.6,2594.2,3.85469]
[1730873394553,0.765,2594.6,2593.8,3.0]
[1730873394554,0.765,2595.0,2593.9,0.55]
[1730873394877,0.765,2595.0,2594.6,3.85404]
[1730873395091,6.72555,2595.2,2594.7,3.0]
[1730873395092,2.8722,2595.2,2594.7,3.0]
[1730873395249,2.8722,2595.2,2594.6,3.85408]
[1730873395449,2.8722,2595.2,2594.6,7.70812]
[1730873395690,2.8722,2595.2,2594.8,3.8538]
[1730873396460,2.8722,2595.2,2594.8,7.70757]
[1730873396660,2.8722,2595.2,2594.8,3.85377]
[1730873397076,2.8722,2595.2,2594.9,3.85365]
[1730873397289,2.8722,2595.2,2594.8,3.85377]
[1730873397463,2.8722,2595.2,2594.8,3.85376]
[1730873397664,2.8722,2595.2,2594.9,3.85359]
[1730873398361,2.8722,2595.2,2594.8,3.85376]
[1730873398712,2.8722,2595.2,2594.3,0.55]
[1730873399183,3.85359,2595.0,2594.2,0.8253]
[1730873399349,3.85351,2595.1,2594.2,0.8253]
[1730873400160,7.70705,2595.1,2594.2,0.8253]
[1730873400484,3.85359,2595.0,2594.2,0.8253]
[1730873400865,0.7919,2595.1,2594.2,0.8253]
[1730873401055,0.7919,2594.6,2593.8,0.8004]
[1730873401475,4.64614,2594.6,2593.8,0.8004]
[1730873401684,3.85447,2594.4,2593.4,0.8104]
[1730873401852,0.7919,2594.6,2593.4,0.8104]
[1730873402053,0.7919,2594.6,2593.6,0.01]
[1730873402280,0.7919,2594.9,2593.8,0.01]
[1730873402494,0.7919,2594.9,2594.0,3.0]
[1730873402697,0.7919,2594.9,2594.2,0.8004]
[1730873403304,0.7919,2594.9,2594.3,0.07707742]
[1730873403617,0.7919,2594.9,2593.9,1.3604]
[1730873403772,2.8722,2595.2,2594.2,0.55]
[1730873403967,2.8722,2595.2,2594.4,0.55]
[1730873404429,2.8722,2595.2,2594.5,3.0]
[1730873404716,2.8722,2595.2,2594.6,0.355]
[1730873404918,2.8722,2595.2,2594.4,0.55]
[1730873405913,2.8722,2595.2,2594.5,3.0]
[1730873406115,2.8722,2595.2,2594.4,0.55]
[1730873406277,2.8722,2595.2,2594.5,3.0]
[1730873406681,2.8722,2595.2,2594.6,0.30096402]
[1730873406991,2.8722,2595.2,2594.6,0.22389201]
[1730873407193,2.8722,2595.2,2594.4,0.82989233]
[1730873407385,2.8722,2595.2,2594.5,3.5039898]
[1730873407581,2.8722,2595.2,2594.6,0.22409747]
[1730873407790,2.8722,2595.2,2594.7,0.22409747]
[1730873407982,2.8722,2595.2,2594.5,3.0]
[1730873408298,2.8722,2595.2,2594.6,0.22414686]
[1730873408503,2.8722,2595.2,2594.7,0.22414686]
[1730873408813,2.8722,2595.2,2594.5,0.28057685]
[1730873408977,2.8722,2595.2,2594.6,0.22444137]
[1730873409173,2.8722,2595.2,2594.4,0.55]
[1730873409380,2.8722,2595.2,2594.5,3.50557585]
[1730873409589,2.8722,2595.2,2594.6,0.50557585]
[1730873409801,2.8722,2595.2,2594.7,0.2246882]
[1730873410006,2.8722,2595.2,2592.9,0.45821096]
[1730873410007,3.85414,2594.7,2594.1,0.25584938]
[1730873410314,3.85416,2594.6,2594.2,0.76122755]
[1730873410478,3.85432,2594.5,2594.3,0.50537817]
[1730873410673,3.85432,2594.5,2594.4,0.22460033]
[1730873410874,5.417066,2594.5,2594.4,0.22460033]
[1730873411096,5.417136,2594.5,2593.8,0.25584938]
[1730873411420,5.417136,2594.5,2593.3,0.8004]
[1730873411421,0.3919,2594.5,2594.1,0.25584938]
[1730873411722,4.24629,2594.5,2594.2,0.50687872]
[1730873411881,0.3919,2594.5,2594.3,0.50687872]
[1730873412081,0.3919,2594.5,2594.4,0.50690103]
[1730873412315,4.2462,2594.5,2594.4,0.50690103]
[1730873412594,4.2462,2594.5,2593.3,0.8004]
[1730873412906,3.85461,2594.3,2594.0,0.25672514]
[1730873413109,3.85461,2594.3,2594.1,0.50732208]
[1730873413282,3.85461,2594.3,2594.2,0.50732208]
[1730873413773,0.3919,2594.5,2594.2,0.50732208]
[1730873413980,0.01,2595.4,2594.3,0.5074433]
[1730873413981,7.70793,2594.8,2594.3,0.5074433]
[1730873414285,4.55892,2594.7,2594.4,0.5074433]
[1730873414492,3.85415,2594.6,2594.5,0.5074433]
[1730873414915,3.85415,2594.6,2594.5,0.22546424]
[1730873415281,0.7048,2594.7,2594.5,0.50743756]
[1730873415617,4.55883,2594.7,2594.6,0.50744308]
[1730873415826,4.695307,2594.7,2594.6,0.22546424]
[1730873415979,3.85565,2593.6,2592.9,1.27581096]
[1730873416180,3.85579,2593.5,2592.9,0.0392]
[1730873416683,3.85565,2593.6,2592.9,0.0392]
[1730873416684,3.85637,2593.2,2592.9,0.0392]
[1730873416905,3.85624,2593.2,2593.0,0.28214978]
[1730873417111,3.85652,2593.1,2592.9,0.0392]
[1730873417413,3.85639,2593.1,2592.9,0.0392]
[1730873418181,1.99299455,2595.4,2593.0,0.8176]
[1730873418182,0.18407688,2594.4,2593.0,0.8176]
[1730873418428,3.85551,2593.7,2593.1,0.27581649]
[1730873418724,3.85588,2593.5,2593.2,0.27581649]
[1730873418922,3.85588,2593.5,2593.0,0.8176]
[1730873419082,0.6767,2593.6,2593.1,0.27575914]
[1730873419283,0.6767,2593.6,2593.2,0.27575914]
[1730873419514,0.6767,2593.6,2593.0,0.8176]